fUST/lending_fUST_20250117
["ID","MTS","AMOUNT","RATE_DAILY","PERIOD"]
[349303997,1737109835160,-500.0,0.00021917,3]
[349303998,1737109835170,-507.11,0.00021917,3]
[349303999,1737109835182,-500.0,0.00021917,3]
[349304000,1737109835194,-637.9,0.00021917,3]
[349304001,1737109835206,-500.0,0.00021917,3]
[349304002,1737109835218,-500.0,0.00021917,3]
[349304003,1737109835230,-500.0,0.00021917,3]
[349304004,1737109835242,-500.0,0.00021917,3]
[349304005,1737109835253,-500.0,0.00021917,3]
[349304006,1737109835264,-500.0,0.00021917,3]
[349304007,1737109835277,-500.0,0.00021917,3]
[349304008,1737109835289,-500.0,0.00021917,3]
[349304009,1737109835301,-2020.25,0.00021917,3]
[349304010,1737109835314,-500.0,0.00021917,3]
[349304011,1737109835326,-500.0,0.00021917,3]
[349304012,1737109835338,-500.0,0.00021917,3]
[349304013,1737109835349,-500.0,0.00021917,3]
[349304014,1737109835359,-500.0,0.00021917,3]
[349304015,1737109835369,-500.0,0.00021917,3]
[349304016,1737109835379,-500.0,0.00021917,3]
[349304017,1737109835390,-500.0,0.00021917,3]
[349304018,1737109835401,-500.0,0.00021917,3]
[349304019,1737109835413,-500.0,0.00021917,3]
[349304020,1737109835426,-500.0,0.00021917,3]
[349304021,1737109835437,-500.0,0.00021917,3]
[349304022,1737109835450,-500.0,0.00021917,3]
[349304023,1737109835462,-500.0,0.00021917,3]
[349304024,1737109835473,-500.0,0.00021917,3]
[349304025,1737109835484,-500.0,0.00021917,3]
[349304026,1737109835495,-500.0,0.00021917,3]
[349304027,1737109835506,-500.0,0.00021917,3]
[349304028,1737109835518,-500.0,0.00021917,3]
[349304029,1737109835530,-500.0,0.00021917,3]
[349304030,1737109835541,-500.0,0.00021917,3]
[349304031,1737109835551,-500.0,0.00021917,3]
[349304032,1737109835562,-638.56,0.00021917,3]
[349304033,1737109835573,-500.0,0.00021917,3]
[349304034,1737109835583,-538.76,0.00021917,3]
[349304035,1737109835594,-500.0,0.00021917,3]
[349304036,1737109835604,-500.0,0.00021917,3]
[349304037,1737109835615,-500.0,0.00021917,3]
[349304038,1737109835625,-500.0,0.00021917,3]
[349304039,1737109835636,-500.0,0.00021917,3]
[349304040,1737109835646,-500.0,0.00021917,3]
[349304041,1737109835657,-500.0,0.00021917,3]
[349304042,1737109835668,-151.0,0.00021917,2]
[349304043,1737109835678,-1000.0,0.00021917,3]
[349304044,1737109835689,-500.0,0.00021917,3]
[349304045,1737109835700,-500.0,0.00021917,3]
[349304046,1737109835714,-500.0,0.00021917,3]
[349304047,1737109835725,-527.2,0.00021917,3]
[349304048,1737109835736,-500.0,0.00021917,3]
[349304049,1737109835747,-495.0,0.00021917,3]
[349304050,1737109835758,-500.0,0.00021917,3]
[349304051,1737109835768,-584.98,0.00021917,3]
[349304052,1737109835780,-500.0,0.00021917,3]
[349304053,1737109835790,-500.0,0.00021917,3]
[349304054,1737109835801,-500.0,0.00021917,3]
[349304055,1737109835811,-500.0,0.00021917,3]
[349304056,1737109835821,-500.0,0.00021917,3]
[349304057,1737109835832,-500.0,0.00021917,3]
[349304058,1737109835843,-500.0,0.00021917,3]
[349304059,1737109835853,-500.0,0.00021917,3]
[349304060,1737109835864,-500.0,0.00021917,3]
[349304061,1737109835878,-546.31,0.00021917,3]
[349304062,1737109835890,-500.0,0.00021917,3]
[349304063,1737109835901,-500.0,0.00021917,3]
[349304064,1737109835912,-518.68,0.00021917,3]
[349304065,1737109835924,-500.0,0.00021917,3]
[349304066,1737109835934,-500.0,0.00021917,3]
[349304067,1737109835945,-307.76648928,0.00021917,3]
[349304068,1737109835961,-500.0,0.00021917,2]
[349304069,1737109835971,-500.0,0.00021917,3]
[349304070,1737109835982,-500.0,0.00021917,3]
[349304071,1737109835992,-500.0,0.00021917,3]
[349304072,1737109836002,-500.0,0.00021917,3]
[349304073,1737109836013,-1053.55,0.00021917,3]
[349304074,1737109836023,-500.0,0.00021917,3]
[349304075,1737109836034,-500.0,0.00021917,3]
[349304076,1737109836045,-500.0,0.00021917,3]
[349304077,1737109836055,-531.49,0.00021917,3]
[349304078,1737109836066,-637.37,0.00021917,3]
[349304079,1737109836076,-503.37704918,0.00021917,3]
[349304080,1737109836086,-500.0,0.00021917,3]
[349304081,1737109836097,-500.0,0.00021917,3]
[349304082,1737109836107,-500.0,0.00021917,3]
[349304083,1737109836117,-500.0,0.00021917,3]
[349304084,1737109836128,-500.0,0.00021917,3]
[349304085,1737109836138,-559.91838776,0.00021917,3]
[349304086,1737109836149,-500.0,0.00021917,3]
[349304087,1737109836284,-500.0,0.00021917,3]
[349304088,1737109836300,-500.0,0.00021917,3]
[349304089,1737109836310,-500.0,0.00021917,3]
[349304090,1737109836319,-500.0,0.00021917,3]
[349304091,1737109836330,-500.0,0.00021917,3]
[349304092,1737109836338,-500.0,0.00021917,3]
[349304093,1737109836348,-593.86953685,0.00021917,3]
[349304094,1737109836357,-500.0,0.00021917,3]
[349304095,1737109836366,-1894.24,0.00021917,3]
[349304096,1737109836375,-500.0,0.00021917,3]
[349304097,1737109836384,-500.0,0.00021917,3]
[349304098,1737109836393,-500.0,0.00021917,3]
[349304099,1737109836404,-500.0,0.00021917,3]
[349304100,1737109836413,-500.0,0.00021917,3]
[349304101,1737109836422,-500.0,0.00021917,3]
[349304102,1737109836431,-500.0,0.00021917,3]
[349304103,1737109836440,-500.0,0.00021917,3]
[349304104,1737109836449,-333.39602905,0.00021917,3]
[349304105,1737109836461,-500.0,0.00021917,3]
[349304106,1737109836470,-500.0,0.00021917,3]
[349304107,1737109836479,-500.0,0.00021917,3]
[349304108,1737109836489,-500.0,0.00021917,3]
[349304109,1737109836498,-500.0,0.00021917,3]
[349304110,1737109836506,-500.0,0.00021917,3]
[349304111,1737109836517,-500.0,0.00021917,3]
[349304112,1737109836527,-500.0,0.00021917,3]
[349304113,1737109836538,-500.0,0.00021917,3]
[349304114,1737109836548,-500.0,0.00021917,3]
[349304115,1737109836558,-1333.63,0.00021917,3]
[349304116,1737109836567,-500.0,0.00021917,3]
[349304117,1737109836576,-500.0,0.00021917,3]
[349304118,1737109836586,-507.39473898,0.00021917,3]
[349304119,1737109836595,-500.0,0.00021917,3]
[349304120,1737109836604,-7292.41,0.00021917,3]
[349304121,1737109836613,-500.0,0.00021917,3]
[349304122,1737109836622,-500.43789982,0.00021917,3]
[349304123,1737109836633,-500.0,0.00021917,3]
[349304124,1737109836644,-500.0,0.00021917,3]
[349304125,1737109836654,-500.0,0.00021917,3]
[349304126,1737109836664,-500.0,0.00021917,3]
[349304127,1737109836673,-500.0,0.00021917,3]
[349304128,1737109836682,-500.0,0.00021917,3]
[349304129,1737109836691,-500.0,0.00021917,3]
[349304130,1737109836700,-500.0,0.00021917,3]
[349304131,1737109836710,-1704.14446356,0.00021934,3]
[349304132,1737109836719,-223.004387,0.00022,5]
[349304133,1737109836728,-1704.14446356,0.00022038,3]
[349304134,1737109836737,-500.0,0.00022052,3]
[349304135,1737109836746,-500.0,0.00022053,2]
[349304136,1737109836757,-612.20085071,0.00022053,2]
[349304137,1737109836767,-263.67355166,0.00022053,2]
[349304138,1737109836776,-611.60691019,0.00022053,2]
[349304139,1737109836787,-500.0,0.00022053,2]
[349304140,1737109836796,-500.0,0.00022053,2]
[349304141,1737109836805,-500.0,0.00022053,2]
[349304142,1737109836814,-500.0,0.00022053,2]
[349304143,1737109836823,-500.0,0.00022053,2]
[349304144,1737109836832,-500.0,0.00022053,2]
[349304145,1737109836840,-500.0,0.00022053,2]
[349304146,1737109836850,-500.0,0.00022053,2]
[349304147,1737109836859,-500.0,0.00022053,2]
[349304148,1737109836868,-500.0,0.00022053,2]
[349304149,1737109836879,-515.96474881,0.00022053,2]
[349304150,1737109836889,-500.0,0.00022053,2]
[349304151,1737109836898,-500.0,0.00022053,2]
[349304152,1737109836907,-500.0,0.00022053,2]
[349304153,1737109836918,-500.0,0.00022053,2]
[349304154,1737109836927,-500.0,0.00022053,2]
[349304155,1737109836935,-500.0,0.00022053,2]
[349304156,1737109836945,-500.0,0.00022053,2]
[349304157,1737109836955,-500.0,0.00022053,2]
[349304158,1737109836965,-500.0,0.00022053,2]
[349304159,1737109836974,-500.0,0.00022053,2]
[349304160,1737109836983,-500.0,0.00022053,3]
[349304161,1737109836993,-500.0,0.00022053,3]
[349304162,1737109837002,-500.0,0.00022053,3]
[349304163,1737109837011,-3715.96,0.00022053,3]
[349304164,1737109837020,-500.0,0.00022053,3]
[349304165,1737109837029,-500.0,0.00022053,3]
[349304166,1737109837039,-500.0,0.00022054,3]
[349304167,1737109837048,-602.52557701,0.00022054,3]
[349304168,1737109837058,-200.0,0.00022054,3]
[349304169,1737109837067,-500.0,0.00022054,3]
[349304170,1737109837076,-500.0,0.00022054,3]
[349304171,1737109837085,-500.0,0.00022054,3]
[349304172,1737109837094,-500.0,0.00022054,3]
[349304173,1737109837104,-513.12,0.00022054,3]
[349304174,1737109837113,-545.58,0.00022054,3]
[349304175,1737109837123,-500.0,0.00022054,3]
[349304176,1737109837133,-500.0,0.00022054,3]
[349304177,1737109837143,-500.0,0.00022054,2]
[349304178,1737109837152,-503.2,0.00022054,3]
[349304179,1737109837161,-500.0,0.00022054,3]
[349304180,1737109837170,-500.0,0.00022054,3]
[349304181,1737109837179,-500.0,0.00022054,3]
[349304182,1737109837188,-500.0,0.00022054,3]
[349304183,1737109837197,-500.0,0.00022054,3]
[349304184,1737109837208,-500.0,0.00022054,3]
[349304185,1737109837217,-500.0,0.00022054,3]
[349304186,1737109837226,-291.4,0.00022054,3]
[349304187,1737109837235,-579.87,0.00022054,3]
[349304188,1737109837244,-460.37,0.00022054,3]
[349304189,1737109837253,-500.6,0.00022054,3]
[349304190,1737109837263,-500.0,0.00022054,3]
[349304191,1737109837273,-500.0,0.00022054,3]
[349304192,1737109837285,-500.0,0.00022054,3]
[349304193,1737109837294,-500.0,0.00022054,3]
[349304194,1737109837304,-500.0,0.00022054,3]
[349304195,1737109837313,-500.0,0.00022054,3]
[349304196,1737109837322,-500.0,0.00022054,3]
[349304197,1737109837332,-500.0,0.00022054,3]
[349304198,1737109837341,-500.0,0.00022054,3]
[349304200,1737109837351,-500.0,0.00022054,3]
[349304202,1737109837360,-500.0,0.00022054,3]
[349304203,1737109837369,-500.0,0.00022054,3]
[349304205,1737109837378,-500.0,0.00022054,3]
[349304207,1737109837387,-513.58038742,0.00022054,3]
[349304209,1737109837397,-500.0,0.00022054,3]
[349304211,1737109837406,-344.47825915,0.00022054,3]
[349304212,1737109837415,-500.0,0.00022054,3]
[349304213,1737109837424,-500.0,0.00022054,3]
[349304214,1737109837433,-500.0,0.00022054,3]
[349304215,1737109837442,-500.0,0.00022054,3]
[349304216,1737109837452,-500.0,0.00022054,3]
[349304217,1737109837465,-500.0,0.00022054,3]
[349304218,1737109837475,-500.0,0.00022054,3]
[349304219,1737109837485,-500.0,0.00022054,3]
[349304220,1737109837494,-510.52460762,0.00022054,3]
[349304221,1737109837503,-500.0,0.00022054,3]
[349304222,1737109837511,-1557.53,0.00022054,3]
[349304224,1737109837520,-500.0,0.00022054,3]
[349304226,1737109837529,-500.0,0.00022054,3]
[349304228,1737109837538,-500.0,0.00022054,3]
[349304230,1737109837547,-500.0,0.00022054,3]
[349304232,1737109837557,-500.0,0.00022054,3]
[349304234,1737109837567,-500.0,0.00022054,3]
[349304236,1737109837576,-500.0,0.00022054,3]
[349304237,1737109837586,-613.42,0.00022054,3]
[349304240,1737109837596,-500.0,0.00022054,3]
[349304242,1737109837605,-500.0,0.00022054,3]
[349304243,1737109837615,-500.0,0.00022054,3]
[349304245,1737109837625,-626.83,0.00022054,3]
[349304247,1737109837634,-500.0,0.00022054,3]
[349304249,1737109837643,-151.0,0.00022054,7]
[349304251,1737109837653,-151.0,0.00022054,7]
[349304253,1737109837662,-629.18,0.00022054,3]
[349304255,1737109837672,-500.0,0.00022054,3]
[349304257,1737109837681,-500.0,0.00022054,3]
[349304259,1737109837691,-500.0,0.00022054,3]
[349304261,1737109837701,-151.0,0.00022054,7]
[349304263,1737109837714,-500.0,0.00022054,3]
[349304265,1737109837724,-500.0,0.00022054,3]
[349304267,1737109837733,-345.79,0.00022054,3]
[349304269,1737109837742,-500.0,0.00022054,3]
[349304271,1737109837752,-500.0,0.00022054,3]
[349304273,1737109837761,-514.67779591,0.00022054,3]
[349304275,1737109837770,-531.66010339,0.00022054,3]
[349304277,1737109837780,-500.0,0.00022054,3]
[349304279,1737109837790,-500.0,0.00022054,3]
[349304281,1737109837799,-500.0,0.00022054,3]
[349304283,1737109837808,-500.0,0.00022054,3]
[349304285,1737109837818,-500.0,0.00022054,3]
[349304286,1737109837827,-500.0,0.00022054,3]
[349304289,1737109837838,-500.0,0.00022054,3]
[349304291,1737109837847,-503.75292844,0.00022054,3]
[349304292,1737109837857,-249.98,0.00022054,3]
[349304294,1737109837867,-466.45627534,0.00022054,3]
[349304297,1737109837880,-500.0,0.00022054,3]
[349304299,1737109837890,-500.0,0.00022054,3]
[349304301,1737109837901,-500.0,0.00022054,3]
[349304303,1737109837910,-500.0,0.00022054,3]
[349304305,1737109837920,-500.0,0.00022054,3]
[349304307,1737109837930,-500.0,0.00022054,3]
[349304309,1737109837939,-500.0,0.00022054,3]
[349304311,1737109837948,-151.0,0.00022054,7]
[349304313,1737109837960,-500.0,0.00022054,3]
[349304315,1737109837970,-500.0,0.00022054,3]
[349304317,1737109837979,-500.0,0.00022054,3]
[349304319,1737109837988,-500.0,0.00022054,3]
[349304321,1737109837998,-518.44807858,0.00022054,3]
[349304323,1737109838007,-500.0,0.00022054,3]
[349304325,1737109838016,-1232.508605,0.00022054,7]
[349304327,1737109838026,-1232.508605,0.00022054,7]
[349304329,1737109838034,-500.0,0.00022054,3]
[349304331,1737109838043,-524.51661106,0.00022054,3]
[349304333,1737109838052,-500.0,0.00022054,3]
[349304335,1737109838062,-500.0,0.00022054,3]
[349304337,1737109838071,-887.63,0.00022054,3]
[349304339,1737109838081,-500.0,0.00022054,3]
[349304341,1737109838090,-739.69,0.00022054,3]
[349304343,1737109838099,-500.0,0.00022054,3]
[349304345,1737109838109,-213.86,0.00022054,3]
[349304347,1737109838118,-500.0,0.00022054,3]
[349304349,1737109838128,-500.0,0.00022054,3]
[349304351,1737109838137,-500.0,0.00022054,3]
[349304353,1737109838147,-500.0,0.00022054,3]
[349304355,1737109838157,-2020.25,0.00022054,3]
[349304357,1737109838167,-500.0,0.00022054,3]
[349304359,1737109838177,-500.0,0.00022054,3]
[349304361,1737109838186,-516.22699192,0.00022054,3]
[349304363,1737109838195,-500.0,0.00022054,3]
[349304365,1737109838206,-500.0,0.00022054,3]
[349304367,1737109838215,-500.0,0.00022054,3]
[349304369,1737109838224,-500.0,0.00022054,3]
[349304371,1737109838234,-500.0,0.00022054,3]
[349304373,1737109838243,-500.0,0.00022054,3]
[349304375,1737109838253,-500.0,0.00022054,3]
[349304377,1737109838262,-500.0,0.00022054,3]
[349304379,1737109838272,-500.0,0.00022054,3]
[349304381,1737109838281,-500.0,0.00022054,3]
[349304383,1737109838291,-526.48,0.00022054,3]
[349304385,1737109838300,-500.0,0.00022054,3]
[349304387,1737109838309,-500.0,0.00022054,3]
[349304388,1737109838319,-500.0,0.00022054,3]
[349304390,1737109838328,-1000.0,0.00022054,3]
[349304392,1737109838338,-500.0,0.00022054,3]
[349304394,1737109838347,-500.0,0.00022054,3]
[349304396,1737109838356,-500.0,0.00022054,3]
[349304398,1737109838366,-584.98,0.00022054,3]
[349304400,1737109838376,-323.23,0.00022054,3]
[349304403,1737109838387,-481.45,0.00022054,3]
[349304404,1737109838401,-500.0,0.00022054,3]
[349304406,1737109838417,-500.0,0.00022054,3]
[349304408,1737109838429,-504.42246103,0.00022054,3]
[349304410,1737109838439,-500.0,0.00022054,3]
[349304412,1737109838448,-500.0,0.00022054,3]
[349304414,1737109838461,-500.0,0.00022054,3]
[349304416,1737109838470,-518.52,0.00022054,3]
[349304418,1737109838481,-1053.55,0.00022054,3]
[349304420,1737109838491,-500.0,0.00022054,3]
[349304422,1737109838500,-351.48080276,0.00022054,3]
[349304424,1737109838510,-531.49,0.00022054,3]
[349304426,1737109838519,-637.37,0.00022054,3]
[349304427,1737109838528,-500.0,0.00022054,3]
[349304428,1737109838537,-500.0,0.00022054,3]
[349304429,1737109838545,-500.0,0.00022054,3]
[349304430,1737109838555,-500.0,0.00022054,3]
[349304431,1737109838563,-500.0,0.00022054,3]
[349304432,1737109838572,-500.0,0.00022054,3]
[349304433,1737109838581,-500.0,0.00022054,3]
[349304434,1737109838592,-500.0,0.00022054,3]
[349304435,1737109838602,-1894.24,0.00022054,3]
[349304436,1737109838611,-500.0,0.00022054,3]
[349304437,1737109838619,-500.0,0.00022054,3]
[349304438,1737109838628,-500.0,0.00022054,3]
[349304439,1737109838638,-500.0,0.00022054,3]
[349304440,1737109838647,-500.0,0.00022054,3]
[349304441,1737109838656,-500.0,0.00022054,3]
[349304442,1737109838666,-500.0,0.00022054,3]
[349304443,1737109838675,-500.0,0.00022054,3]
[349304444,1737109838684,-500.0,0.00022054,3]
[349304446,1737109838694,-500.0,0.00022054,3]
[349304448,1737109838703,-150.95264266,0.00022054,3]
[349304450,1737109838715,-1333.63,0.00022054,3]
[349304452,1737109838725,-500.0,0.00022054,3]
[349304454,1737109838734,-7292.41,0.00022054,3]
[349304456,1737109838744,-500.0,0.00022054,3]
[349304458,1737109838754,-500.0,0.00022054,3]
[349304460,1737109838763,-500.0,0.00022054,3]
[349304462,1737109838772,-500.0,0.00022054,3]
[349304464,1737109838782,-500.0,0.00022054,3]
[349304466,1737109838791,-500.0,0.0002213,2]
[349304468,1737109838800,-1704.14446356,0.00022141,3]
[349304470,1737109838809,-500.0,0.0002219,3]
[349304472,1737109838819,-500.0,0.0002219,3]
[349304474,1737109838828,-3715.96,0.0002219,3]
[349304476,1737109838837,-500.0,0.0002219,3]
[349304478,1737109838847,-500.0,0.0002219,3]
[349304480,1737109838856,-579.87,0.00022191,3]
[349304482,1737109838866,-337.31,0.00022191,3]
[349304484,1737109838876,-500.0,0.00022191,3]
[349304486,1737109838888,-500.0,0.00022191,3]
[349304488,1737109838897,-531.03804288,0.00022191,3]
[349304490,1737109838908,-500.0,0.00022191,3]
[349304492,1737109838919,-535.67,0.00022191,3]
[349304494,1737109838928,-500.0,0.00022191,3]
[349304496,1737109838938,-500.0,0.00022191,3]
[349304498,1737109838947,-347.37,0.00022191,3]
[349304500,1737109838960,-500.0,0.00022191,3]
[349304502,1737109838970,-500.0,0.00022191,3]
[349304504,1737109838979,-424.95,0.00022191,3]
[349304506,1737109838989,-500.0,0.00022191,3]
[349304508,1737109838998,-323.35,0.00022191,3]
[349304510,1737109839008,-248.27,0.00022191,3]
[349304512,1737109839017,-500.0,0.00022191,3]
[349304514,1737109839027,-500.0,0.00022191,3]
[349304516,1737109839036,-1557.53,0.00022191,3]
[349304518,1737109839046,-422.97,0.00022191,3]
[349304519,1737109839055,-500.0,0.00022191,3]
[349304522,1737109839074,-412.08,0.00022191,3]
[349304524,1737109839084,-151.0,0.00022191,7]
[349304526,1737109839093,-500.0,0.00022191,3]
[349304528,1737109839103,-518.68066236,0.00022191,3]
[349304529,1737109839112,-500.0,0.00022191,3]
[349304532,1737109839122,-500.0,0.00022191,3]
[349304544,1737109839237,-500.0,0.00022191,3]
[349304546,1737109839247,-500.0,0.00022191,3]
[349304548,1737109839256,-500.0,0.00022191,3]
[349304550,1737109839266,-500.0,0.00022191,3]
[349304552,1737109839276,-327.36,0.00022191,3]
[349304554,1737109839286,-500.0,0.00022191,3]
[349304556,1737109839296,-500.0,0.00022191,3]
[349304558,1737109839306,-508.46368533,0.00022191,3]
[349304560,1737109839315,-500.0,0.00022191,3]
[349304562,1737109839325,-552.4095296,0.00022191,3]
[349304564,1737109839334,-565.91,0.00022191,3]
[349304566,1737109839343,-500.0,0.00022191,3]
[349304568,1737109839353,-151.0,0.00022191,7]
[349304570,1737109839362,-164.16,0.00022191,3]
[349304572,1737109839371,-295.32,0.00022191,3]
[349304574,1737109839380,-500.0,0.00022191,3]
[349304576,1737109839390,-1232.508605,0.00022191,7]
[349304578,1737109839399,-1232.508605,0.00022191,7]
[349304580,1737109839408,-500.0,0.00022191,3]
[349304582,1737109839418,-500.0,0.00022191,3]
[349304584,1737109839427,-887.63,0.00022191,3]
[349304586,1737109839437,-500.0,0.00022191,3]
[349304588,1737109839446,-739.69,0.00022191,3]
[349304590,1737109839455,-500.0,0.00022191,3]
[349304592,1737109839468,-500.0,0.00022191,3]
[349304594,1737109839478,-214.95,0.00022191,3]
[349304596,1737109839487,-500.0,0.00022191,3]
[349304598,1737109839497,-2020.25,0.00022191,3]
[349304600,1737109839506,-523.43,0.00022191,3]
[349304602,1737109839516,-500.0,0.00022191,3]
[349304604,1737109839527,-181.97,0.00022191,3]
[349304606,1737109839537,-179.09,0.00022191,3]
[349304608,1737109839547,-500.0,0.00022191,3]
[349304610,1737109839556,-500.0,0.00022191,3]
[349304613,1737109839566,-441.88,0.00022191,3]
[349304616,1737109839575,-500.0,0.00022191,3]
[349304619,1737109839586,-194.71,0.00022191,3]
[349304621,1737109839595,-500.0,0.00022191,3]
[349304623,1737109839605,-584.98,0.00022191,3]
[349304625,1737109839616,-500.0,0.00022191,3]
[349304627,1737109839626,-500.0,0.00022191,3]
[349304629,1737109839636,-500.0,0.00022191,3]
[349304631,1737109839646,-500.0,0.00022191,3]
[349304633,1737109839656,-1053.55,0.00022191,3]
[349304635,1737109839665,-531.49,0.00022191,3]
[349304637,1737109839675,-637.37,0.00022191,3]
[349304639,1737109839684,-455.28,0.00022191,3]
[349304641,1737109839693,-500.0,0.00022191,3]
[349304643,1737109839702,-500.0,0.00022191,3]
[349304645,1737109839715,-500.0,0.00022191,3]
[349304647,1737109839725,-500.0,0.00022191,3]
[349304649,1737109839734,-500.0,0.00022191,3]
[349304651,1737109839743,-500.0,0.00022191,3]
[349304653,1737109839752,-572.0,0.00022191,3]
[349304655,1737109839761,-1894.24,0.00022191,3]
[349304657,1737109839770,-539.23,0.00022191,3]
[349304659,1737109839780,-500.0,0.00022191,3]
[349304661,1737109839790,-500.0,0.00022191,3]
[349304663,1737109839799,-500.0,0.00022191,3]
[349304665,1737109839808,-500.0,0.00022191,3]
[349304667,1737109839818,-500.0,0.00022191,3]
[349304669,1737109839828,-500.0,0.00022191,3]
[349304671,1737109839837,-500.0,0.00022191,3]
[349304673,1737109839847,-1333.63,0.00022191,3]
[349304675,1737109839856,-7292.41,0.00022191,3]
[349304677,1737109839869,-500.0,0.00022191,3]
[349304679,1737109839880,-500.0,0.00022191,3]
[349304681,1737109839891,-500.0,0.00022191,3]
[349304684,1737109839900,-319.87351519,0.00022198,2]
[349304686,1737109839910,-1704.14446356,0.00022245,3]
[349304688,1737109839919,-3595.0,0.00022301,4]
[349304690,1737109839929,-3715.96,0.00022327,3]
[349304692,1737109839939,-500.0,0.00022327,3]
[349304694,1737109839948,-500.0,0.00022327,3]
[349304696,1737109839963,-579.87,0.00022328,3]
[349304698,1737109839974,-500.0,0.00022328,3]
[349304700,1737109839983,-185.57,0.00022328,3]
[349304702,1737109839992,-1557.53,0.00022328,3]
[349304704,1737109840002,-151.0,0.00022328,7]
[349304706,1737109840011,-151.0,0.00022328,7]
[349304708,1737109840021,-500.0,0.00022328,3]
[349304710,1737109840030,-310.08,0.00022328,3]
[349304712,1737109840039,-639.0,0.00022328,3]
[349304714,1737109840049,-151.0,0.00022328,7]
[349304716,1737109840059,-500.0,0.00022328,3]
[349304718,1737109840068,-1232.508605,0.00022328,7]
[349304720,1737109840077,-1232.508605,0.00022328,7]
[349304722,1737109840087,-500.0,0.00022328,3]
[349304724,1737109840096,-887.63,0.00022328,3]
[349304726,1737109840105,-500.0,0.00022328,3]
[349304728,1737109840115,-739.69,0.00022328,3]
[349304730,1737109840125,-554.52,0.00022328,3]
[349304732,1737109840134,-500.0,0.00022328,3]
[349304734,1737109840144,-500.0,0.00022328,3]
[349304736,1737109840153,-2020.25,0.00022328,3]
[349304738,1737109840162,-500.0,0.00022328,3]
[349304740,1737109840172,-500.0,0.00022328,3]
[349304742,1737109840181,-500.0,0.00022328,3]
[349304744,1737109840190,-584.98,0.00022328,3]
[349304746,1737109840199,-500.0,0.00022328,3]
[349304748,1737109840210,-1053.55,0.00022328,3]
[349304750,1737109840219,-531.49,0.00022328,3]
[349304752,1737109840228,-637.37,0.00022328,3]
[349304754,1737109840238,-500.0,0.00022328,3]
[349304756,1737109840248,-500.0,0.00022328,3]
[349304758,1737109840258,-500.0,0.00022328,3]
[349304760,1737109840268,-500.0,0.00022328,3]
[349304762,1737109840277,-500.0,0.00022328,3]
[349304764,1737109840286,-1894.24,0.00022328,3]
[349304766,1737109840295,-500.0,0.00022328,3]
[349304768,1737109840305,-500.0,0.00022328,3]
[349304770,1737109840315,-500.0,0.00022328,3]
[349304772,1737109840324,-1333.63,0.00022328,3]
[349304774,1737109840334,-7292.41,0.00022328,3]
[349304776,1737109840343,-500.0,0.00022328,3]